fUSD/lending_fUSD_20251229
["ID","MTS","AMOUNT","RATE_DAILY","PERIOD"]
[399980575,1766973038517,-3636.82058928,0.00014999,2]
[399980576,1766973039211,-374.25439088,0.00014999,2]
[399980577,1766973039228,-1103.16022683,0.00014999,2]
[399980578,1766973039239,-1238.95791096,0.00014999,2]
[399980579,1766973039273,-1253.02955847,0.00014999,2]
[399980586,1766973039772,-1729.9999,0.00014999,2]
[399980590,1766973039858,-355.967079,0.00014999,2]
[399980591,1766973039870,-395.92311807,0.00014999,2]
[399980592,1766973039882,-1774.97084956,0.00014999,2]
[399980593,1766973039894,-1265.550521,0.00014999,2]
[399980594,1766973039905,-467.805,0.00014999,2]
[399980595,1766973039944,-4248.99310287,0.00014999,2]
[399980596,1766973039955,-364.84083164,0.00014999,2]
[399980597,1766973039968,-323.96999972,0.00014999,2]
[399980598,1766973039979,-1128.5250005,0.00014999,2]
[399980599,1766973040051,-365.60756904,0.00014999,2]
[399980600,1766973040063,-883436.32629778,0.00014999,2]
[399980601,1766973040073,-207.02431502,0.00015005,2]
[399980602,1766973040082,-420.0,0.00015009,2]
[399980603,1766973040092,-420.0,0.00015009,2]
[399980604,1766973040101,-200.0,0.00015045,2]
[399980605,1766973040110,-1680.0,0.00015066,2]
[399980606,1766973040119,-150.0,0.00015074,2]
[399980607,1766973040128,-176.9839335,0.00015074,2]
[399980608,1766973040137,-150.0,0.00015074,2]
[399980609,1766973040146,-150.0,0.00015074,2]
[399980610,1766973040155,-500.0,0.00015098,2]
[399980611,1766973040164,-150.0,0.00015101,2]
[399980612,1766973040174,-150.0,0.00015101,2]
[399980613,1766973040183,-150.0,0.00015101,2]
[399980614,1766973040193,-1000.0,0.00015121,2]
[399980615,1766973040203,-200.0,0.00015129,2]
[399980616,1766973040212,-252.53718682,0.00015129,2]
[399980617,1766973040221,-219.97341571,0.00015129,2]
[399980618,1766973040230,-4620.54553997,0.0001513,2]
[399980619,1766973040240,-8401.31643524,0.00015166,2]
[399980620,1766973040249,-151.0,0.00015166,2]
[399980621,1766973040259,-151.0,0.00015166,2]
[399980622,1766973040269,-330.87469294,0.00015193,2]
[399980623,1766973040278,-663.53848221,0.00015233,2]
[399980624,1766973040287,-153.81,0.00015251,2]
[399980625,1766973040297,-168.0,0.00015256,2]
[399980626,1766973040306,-156.00800985,0.00015288,2]
[399980627,1766973040315,-150.0,0.00015288,2]
[399980628,1766973040324,-150.0,0.00015288,2]
[399980629,1766973040333,-150.0,0.00015288,2]
[399980630,1766973040343,-150.0,0.00015288,2]
[399980631,1766973040352,-152.26654522,0.00015288,2]
[399980632,1766973040361,-150.0,0.00015288,2]
[399980633,1766973040370,-151.41609779,0.00015288,2]
[399980634,1766973040379,-151.85727785,0.00015288,2]
[399980635,1766973040388,-150.0,0.00015288,2]
[399980636,1766973040397,-150.0,0.00015288,2]
[399980637,1766973040407,-150.99,0.0001531,2]
[399980638,1766973040416,-150.99,0.0001531,2]
[399980639,1766973040425,-9999.99,0.0001531,2]
[399980640,1766973040435,-9999.99,0.0001531,2]
[399980641,1766973040445,-3189.73,0.0001531,2]
[399980642,1766973040454,-7118.3858413,0.00015323,2]
[399980643,1766973040463,-1000.0,0.00015348,2]
[399980644,1766973040473,-4620.54553997,0.00015351,2]
[399980645,1766973040482,-1600.0,0.00015364,2]
[399980646,1766973040491,-1818.905,0.00015372,2]
[399980647,1766973040501,-166.343,0.00015372,2]
[399980648,1766973040510,-1356.1330072,0.00015405,2]
[399980649,1766973040520,-6648.48237074,0.00015448,2]
[399980650,1766973040529,-330.87469294,0.00015478,2]
[399980651,1766973040539,-150.0,0.000155,2]
[399980652,1766973040549,-150.0,0.000155,2]
[399980653,1766973040558,-168.0,0.00015535,2]
[399980654,1766973040570,-151.0,0.00015539,2]
[399980655,1766973040582,-151.0,0.00015539,2]
[399980656,1766973040592,-151.0,0.00015541,2]
[399980657,1766973040601,-154.7,0.00015541,2]
[399980658,1766973040611,-151.0,0.00015541,2]
[399980659,1766973040621,-151.0,0.00015551,2]
[399980660,1766973040631,-151.0,0.00015551,2]
[399980661,1766973040640,-151.0,0.00015551,2]
[399980662,1766973040650,-663.53848221,0.00015567,2]
[399980663,1766973040659,-4620.54553997,0.00015573,2]
[399980664,1766973040669,-2000.0,0.00015573,2]
[399980665,1766973040678,-151.0,0.00015577,2]
[399980666,1766973040687,-1000.0,0.00015591,2]
[399980667,1766973040697,-150.0,0.000156,2]
[399980668,1766973040706,-34240.17341644,0.000156,2]
[399980669,1766973040715,-168.0,0.00015604,2]
[399980670,1766973040724,-168.0,0.00015614,2]
[399980671,1766973040733,-11544.75306273,0.00015628,2]
[399980672,1766973040743,-500.0,0.00015632,2]
[399980673,1766973040752,-737.71107634,0.00015668,2]
[399980674,1766973040762,-166.66,0.00015716,2]
[399980675,1766973040772,-9709.56587573,0.00015762,2]
[399980676,1766973040781,-330.87469294,0.00015762,2]
[399980677,1766973040791,-4620.54553997,0.00015794,2]
[399980678,1766973040801,-168.0,0.00015794,2]
[399980679,1766973040811,-3155.0,0.00015835,2]
[399980680,1766973040821,-1611.0,0.00015835,2]
[399980681,1766973040831,-613.0,0.00015835,2]
[399980682,1766973040840,-1337.052,0.00015835,2]
[399980683,1766973040850,-3461.0,0.00015835,2]
[399980684,1766973040859,-1264.0,0.00015835,2]
[399980685,1766973040869,-433.869,0.00015835,2]
[399980686,1766973040880,-150.0,0.00015835,2]
[399980687,1766973040889,-566.356,0.00015835,2]
[399980688,1766973040900,-150.0,0.00015835,2]
[399980689,1766973040909,-6539.0,0.00015835,2]
[399980690,1766973040919,-2432.0,0.00015835,2]
[399980691,1766973040928,-150.0,0.00015854,2]
[399980692,1766973040938,-663.53848221,0.000159,2]
[399980693,1766973040947,-1356.1330072,0.000159,2]
[399980694,1766973040957,-423.82,0.00015916,2]
[399980695,1766973040966,-250.0,0.00015971,2]
[399980696,1766973040976,-500.91392961,0.00015973,2]
[399980697,1766973040985,-500.0,0.00015973,2]
[399980698,1766973040995,-502.8600008,0.00015973,2]
[399980699,1766973041004,-502.26764026,0.00015973,2]
[399980700,1766973041017,-500.0,0.00015973,2]
[399980701,1766973041027,-500.0,0.00015973,2]
[399980702,1766973041038,-500.0,0.00015973,2]
[399980703,1766973041047,-500.0,0.00015973,2]
[399980704,1766973041057,-500.0,0.00015973,2]
[399980705,1766973041067,-500.0,0.00015973,2]
[399980706,1766973041076,-500.0,0.00015973,2]
[399980707,1766973041086,-503.26938264,0.00015973,2]
[399980708,1766973041095,-502.39900379,0.00015973,2]
[399980709,1766973041104,-503.09186867,0.00015973,2]
[399980710,1766973041114,-502.23759643,0.00015973,2]
[399980711,1766973041124,-503.01610254,0.00015973,2]
[399980712,1766973041133,-500.0,0.00015973,2]
[399980713,1766973041143,-160.38622711,0.00015973,2]
[399980714,1766973041153,-500.0,0.00015973,2]
[399980715,1766973041163,-500.0,0.00015973,2]
[399980716,1766973041172,-500.0,0.00015973,2]
[399980717,1766973041182,-502.53594448,0.00015973,2]
[399980718,1766973041192,-500.0,0.00015973,2]
[399980719,1766973041202,-503.50210118,0.00015973,2]
[399980720,1766973041216,-500.0,0.00015973,2]
[399980721,1766973041226,-500.0,0.00015973,2]
[399980722,1766973041236,-500.54368888,0.00015973,2]
[399980723,1766973041246,-543.507543,0.00015973,2]
[399980724,1766973041256,-503.16928806,0.00015973,2]
[399980725,1766973041267,-505.65896461,0.00015973,2]
[399980726,1766973041276,-500.0,0.00015973,2]
[399980727,1766973041286,-501.06881758,0.00015973,2]
[399980728,1766973041295,-500.0,0.00015973,2]
[399980729,1766973041305,-500.0,0.00015973,2]
[399980730,1766973041315,-500.0,0.00015973,2]
[399980731,1766973041324,-500.0,0.00015973,2]
[399980732,1766973041334,-500.0,0.00015973,2]
[399980733,1766973041345,-636.55,0.00015973,2]
[399980734,1766973041356,-507.63532052,0.00015999,2]
[399980735,1766973041365,-500.0,0.00015999,2]
[399980736,1766973041375,-500.0,0.00015999,2]
[399980737,1766973041386,-501.42932572,0.00015999,2]
[399980738,1766973041395,-16961.26309548,0.00016,2]
[399980739,1766973041409,-98321.27836719,0.00016,2]
[399980740,1766973041418,-6195.47563172,0.00016,4]
[399980741,1766973041427,-384.16,0.00016,2]
[399980742,1766973041438,-4620.54553997,0.00016015,2]
[399980743,1766973041449,-920.62839814,0.00016027,2]
[399980744,1766973041460,-339.0,0.00016039,2]
[399980745,1766973041470,-330.87469294,0.00016047,2]
[399980746,1766973041479,-963.09,0.00016055,2]
[399980747,1766973041490,-599.60298507,0.00016055,2]
[399980748,1766973041500,-920.62839814,0.00016082,2]
[399980749,1766973041511,-216.27251435,0.00016101,2]
[399980750,1766973041520,-166.68,0.00016102,2]
[399980751,1766973041529,-535.35055637,0.00016115,2]
[399980752,1766973041539,-500.0,0.00016115,2]
[399980753,1766973041549,-920.62839814,0.00016137,2]
[399980754,1766973041559,-150.0,0.00016137,2]
[399980755,1766973041569,-150.0,0.00016137,2]
[399980756,1766973041582,-866.5150099,0.00016141,2]
[399980757,1766973041591,-250.0,0.00016163,2]
[399980758,1766973041604,-302.3,0.00016192,2]
[399980759,1766973041613,-186.74,0.00016192,2]
[399980760,1766973041623,-301.26,0.00016192,2]
[399980761,1766973041632,-1221.52,0.00016192,2]
[399980762,1766973041641,-554.77,0.00016192,2]
[399980763,1766973041651,-170.94,0.00016192,2]
[399980764,1766973041660,-1221.52,0.00016192,2]
[399980765,1766973041670,-554.77,0.00016192,2]
[399980766,1766973041679,-1221.52,0.00016192,2]
[399980767,1766973041689,-170.94,0.00016192,2]
[399980768,1766973041698,-554.64,0.00016196,2]
[399980769,1766973041708,-300.0,0.00016196,2]
[399980770,1766973041717,-150.0,0.00016196,2]
[399980771,1766973041727,-465.28,0.00016196,2]
[399980772,1766973041736,-357.1,0.00016196,2]
[399980773,1766973041745,-465.28,0.00016196,2]
[399980774,1766973041755,-1221.21,0.00016196,2]
[399980775,1766973041765,-554.64,0.00016196,2]
[399980776,1766973041774,-1249.22,0.00016196,2]
[399980777,1766973041784,-151.58,0.00016211,2]
[399980778,1766973041796,-476.73,0.00016211,2]
[399980779,1766973041806,-566.37,0.00016211,2]
[399980780,1766973041816,-300.0,0.00016211,2]
[399980781,1766973041825,-250.0,0.00016215,2]
[399980782,1766973041835,-920.62839814,0.00016219,2]
[399980783,1766973041845,-663.53848221,0.00016233,2]
[399980784,1766973041854,-1004.1004984,0.00016235,2]
[399980785,1766973041864,-4620.54553997,0.00016236,2]
[399980786,1766973041874,-636.55,0.00016247,2]
[399980787,1766973041884,-920.62839814,0.00016274,2]
[399980788,1766973041894,-250.0,0.00016277,2]
[399980789,1766973041903,-920.62839814,0.00016329,2]
[399980790,1766973041913,-330.87469294,0.00016331,2]
[399980791,1766973041923,-166.66,0.00016339,2]
[399980792,1766973041932,-250.0,0.00016351,2]
[399980793,1766973041942,-334.5472959,0.00016359,2]
[399980794,1766973041951,-250.0,0.00016363,2]
[399980795,1766973041961,-151.84338434,0.000164,2]
[399980796,1766973041972,-920.62839814,0.00016411,2]
[399980797,1766973041982,-150.0,0.0001642,2]
[399980798,1766973041994,-170.209,0.00016434,2]
[399980799,1766973042003,-150.243,0.00016434,2]
[399980800,1766973042013,-170.0,0.00016434,2]
[399980801,1766973042022,-150.103,0.00016434,2]
[399980802,1766973042031,-150.0,0.00016434,2]
[399980803,1766973042041,-150.0,0.00016434,2]
[399980804,1766973042050,-150.203,0.00016434,2]
[399980805,1766973042059,-151.0,0.00016435,2]
[399980806,1766973042069,-151.0,0.00016435,2]
[399980807,1766973042078,-151.0,0.00016438,2]
[399980808,1766973042087,-151.0,0.00016438,2]
[399980809,1766973042097,-157.048096,0.00016438,2]
[399980810,1766973042107,-151.0,0.00016438,2]
[399980811,1766973042116,-151.0,0.00016438,2]
[399980812,1766973042126,-151.0,0.00016438,2]
[399980813,1766973042135,-500.0,0.00016438,2]
[399980814,1766973042145,-500.0,0.00016438,2]
[399980815,1766973042155,-500.0,0.00016438,2]
[399980816,1766973042165,-500.0,0.00016438,2]
[399980817,1766973042175,-500.0,0.00016438,2]
[399980818,1766973042184,-500.0,0.00016438,2]
[399980819,1766973042194,-500.0,0.00016438,2]
[399980820,1766973042203,-500.0,0.00016438,2]
[399980821,1766973042213,-500.0,0.00016438,2]
[399980822,1766973042222,-500.0,0.00016438,2]
[399980823,1766973042231,-500.0,0.00016438,2]
[399980824,1766973042241,-500.0,0.00016438,2]
[399980825,1766973042252,-500.0,0.00016438,2]
[399980826,1766973042261,-500.0,0.00016438,2]
[399980827,1766973042270,-500.0,0.00016438,2]
[399980828,1766973042279,-500.0,0.00016438,2]
[399980829,1766973042289,-500.0,0.00016438,2]
[399980830,1766973042298,-500.0,0.00016438,2]
[399980831,1766973042307,-581.70952203,0.00016438,2]
[399980832,1766973042316,-500.0,0.00016438,2]
[399980833,1766973042326,-500.0,0.00016438,2]
[399980834,1766973042335,-500.0,0.00016438,2]
[399980835,1766973042345,-500.0,0.00016438,2]
[399980836,1766973042356,-500.0,0.00016438,2]
[399980837,1766973042375,-500.0,0.00016438,2]
[399980838,1766973042386,-500.0,0.00016438,2]
[399980839,1766973042396,-500.0,0.00016438,2]
[399980840,1766973042406,-500.0,0.00016438,2]
[399980841,1766973042415,-500.0,0.00016438,2]
[399980842,1766973042425,-500.0,0.00016438,2]
[399980843,1766973042435,-500.0,0.00016438,2]
[399980844,1766973042444,-500.0,0.00016438,2]
[399980845,1766973042454,-500.0,0.00016438,2]
[399980846,1766973042465,-500.0,0.00016438,2]
[399980847,1766973042475,-499.99999999,0.00016438,2]
[399980848,1766973042485,-1457.6,0.00016438,2]
[399980850,1766973042494,-150.0,0.00016438,2]
[399980852,1766973042503,-6676.09,0.00016438,2]
[399980853,1766973042512,-164.62,0.0001644,2]
[399980854,1766973042522,-164.62,0.0001644,2]
[399980855,1766973042531,-164.62,0.0001644,2]
[399980856,1766973042540,-164.62,0.0001644,2]
[399980857,1766973042550,-164.62,0.0001644,2]
[399980858,1766973042559,-164.62,0.0001644,2]
[399980859,1766973042569,-587.0,0.00016449,2]
[399980860,1766973042581,-587.0,0.00016449,2]
[399980862,1766973042590,-4620.54553997,0.00016458,2]
[399980864,1766973042599,-250.0,0.00016458,2]
[399980866,1766973042609,-150.0,0.00016465,2]
[399980867,1766973042618,-920.62839814,0.00016466,2]
[399980868,1766973042627,-150.39,0.00016466,2]
[399980869,1766973042636,-205.62787512,0.00016493,2]
[399980870,1766973042646,-1000.0,0.00016521,2]
[399980871,1766973042657,-280.77410778,0.00016521,2]
[399980872,1766973042666,-1000.0,0.00016521,2]
[399980873,1766973042676,-500.98563124,0.00016521,2]
[399980874,1766973042686,-518.19209166,0.00016521,2]
[399980875,1766973042695,-503.16247493,0.00016521,2]
[399980876,1766973042705,-500.0,0.00016521,2]
[399980877,1766973042714,-502.49886009,0.00016521,2]
[399980878,1766973042724,-501.26373866,0.00016521,2]
[399980879,1766973042733,-343.7681011,0.00016521,2]
[399980880,1766973042746,-583.92806471,0.00016521,2]
[399980881,1766973042755,-1000.0,0.00016521,2]
[399980882,1766973042765,-653.69234025,0.00016521,2]
[399980883,1766973042774,-504.28022329,0.00016521,2]
[399980884,1766973042784,-503.1591198,0.00016521,2]
[399980885,1766973042794,-502.27522355,0.00016521,2]
[399980886,1766973042803,-1000.0,0.00016521,2]
[399980887,1766973042813,-1000.0,0.00016521,2]
[399980888,1766973042824,-1000.0,0.00016521,2]
[399980889,1766973042834,-1000.0,0.00016521,2]
[399980890,1766973042846,-1000.0,0.00016521,2]
[399980891,1766973042855,-636.55,0.00016521,2]
[399980892,1766973042865,-920.62839814,0.00016548,2]
[399980893,1766973042874,-663.53848221,0.00016567,2]
[399980894,1766973042884,-2351.0,0.00016572,2]
[399980895,1766973042893,-920.62839814,0.00016603,2]
[399980896,1766973042903,-250.0,0.00016615,2]
[399980897,1766973042912,-330.87469294,0.00016616,2]
[399980898,1766973042922,-224.045105,0.00016644,2]
[399980899,1766973042932,-920.62839814,0.00016658,2]
[399980900,1766973042941,-956.25520257,0.0001666,2]
[399980901,1766973042951,-4620.54553997,0.00016679,2]
[399980902,1766973042962,-163.0,0.0001668,2]
[399980903,1766973042972,-13151.30893632,0.00016683,2]
[399980904,1766973042982,-250.0,0.00016704,2]
[399980905,1766973042992,-1457.6,0.00016712,2]
[399980906,1766973043002,-164.99,0.00016712,2]
[399980907,1766973043012,-2605.0,0.00016725,2]
[399980908,1766973043022,-920.62839814,0.0001674,2]
[399980909,1766973043033,-193.3456329,0.00016749,2]
[399980910,1766973043044,-153.81,0.00016776,2]
[399980911,1766973043054,-636.55,0.00016795,2]
[399980912,1766973043064,-163.72,0.000169,2]
[399980913,1766973043074,-13151.30893632,0.000169,2]
[399980914,1766973043084,-663.53848221,0.000169,2]
[399980915,1766973043094,-330.87469294,0.000169,2]
[399980916,1766973043104,-2326.77759593,0.000169,2]
[399980917,1766973043113,-13015.08523095,0.000169,2]
[399980918,1766973043123,-427.06983761,0.000169,2]
[399980919,1766973043136,-4620.54553997,0.000169,2]
[399980920,1766973043146,-230.19418188,0.000169,2]
[399980921,1766973043156,-1600.0,0.000169,2]
[399980923,1766973043165,-250.0,0.00016915,2]
[399980925,1766973043176,-166.66,0.00016962,2]
[399980926,1766973043185,-515.90428351,0.00016969,2]
[399980927,1766973043196,-250.0,0.0001697,2]
[399980928,1766973043205,-150.22881909,0.00016973,2]
[399980929,1766973043215,-163.61156298,0.00016973,2]
[399980931,1766973043224,-150.0,0.00016973,2]
[399980932,1766973043234,-150.0,0.00016973,2]
[399980933,1766973043244,-250.0,0.00016975,2]
[399980934,1766973043253,-164.62,0.00016976,2]
[399980935,1766973043263,-164.62,0.00016976,2]
[399980936,1766973043272,-164.62,0.0001698,2]
[399980937,1766973043283,-1457.6,0.00016986,2]
[399980938,1766973043293,-151.0,0.00016986,2]
[399980939,1766973043302,-150.0,0.00016986,2]
[399980940,1766973043312,-151.0,0.00016986,2]
[399980941,1766973043321,-151.0,0.00016986,2]
[399980942,1766973043331,-283.671057,0.00016986,2]
[399980943,1766973043341,-283.671057,0.00016986,2]
[399980944,1766973043350,-151.0,0.00016986,2]
[399980945,1766973043360,-283.671057,0.00016986,2]
[399980946,1766973043370,-151.0,0.00016986,2]
[399980947,1766973043379,-283.671057,0.00016986,2]
[399980948,1766973043389,-157.83595805,0.00016986,2]
[399980949,1766973043398,-161.16999011,0.00016986,2]
[399980950,1766973043409,-239.97655917,0.00016986,2]
[399980951,1766973043419,-160.09867247,0.00016986,2]
[399980952,1766973043429,-154.44039113,0.00016986,2]
[399980953,1766973043438,-151.89260944,0.00016986,2]
[399980954,1766973043448,-159.79234637,0.00016986,2]
[399980955,1766973043458,-328463.64,0.00016986,2]
[399980956,1766973043468,-205790.0880706,0.0001699,2]
[399980957,1766973043477,-151.0,0.0001699,2]
[399980958,1766973043487,-151.0,0.0001699,2]
[399980959,1766973043496,-151.0,0.0001699,2]
[399980960,1766973043508,-151.0,0.0001699,2]
[399980961,1766973043518,-151.0,0.0001699,2]
[399980962,1766973043527,-500.0,0.00016998,2]
[399980963,1766973043537,-500.0,0.00016998,2]
[399980964,1766973043546,-1194.59810132,0.00016999,5]
[399980965,1766973043557,-1069.8434585,0.00016999,5]
[399980966,1766973043567,-300.0,0.00016999,2]
[399980967,1766973043577,-300.0,0.00016999,2]
[399980968,1766973043589,-1090.24693266,0.00016999,5]
[399980969,1766973043601,-1090.24693266,0.00016999,5]
[399980970,1766973043610,-500.0,0.00016999,2]
[399980971,1766973043620,-500.0,0.00016999,2]
[399980972,1766973043632,-500.0,0.00016999,2]
[399980973,1766973043642,-500.0,0.00016999,2]
[399980974,1766973043652,-500.0,0.00016999,2]
[399980975,1766973043662,-517.28818267,0.00016999,2]
[399980976,1766973043673,-500.0,0.00016999,2]
[399980977,1766973043682,-500.0,0.00016999,2]
[399980978,1766973043692,-500.0,0.00016999,2]
[399980979,1766973043702,-500.0,0.00016999,2]
[399980980,1766973043712,-500.0,0.00016999,2]
[399980981,1766973043721,-521.66547339,0.00016999,2]
[399980982,1766973043731,-300.0,0.00016999,2]
[399980983,1766973043740,-307.4523728,0.00016999,2]
[399980984,1766973043750,-300.0,0.00016999,2]
[399980985,1766973043760,-300.0,0.00016999,2]
[399980986,1766973043770,-150.0,0.00017,2]
[399980987,1766973043779,-1621413.29879474,0.00017,2]
[399980988,1766973043853,-1138857.49335233,0.00017,2]
[399980989,1766973043863,-2407759.98237456,0.00017,2]
[399980990,1766973044118,-3294462.64583268,0.00017,2]
[399980991,1766973044127,-3272837.44009244,0.00017,2]
[399980992,1766973044137,-1563781.07345968,0.00017,2]
[399980993,1766973044147,-546251.24270484,0.00017,2]
[399980994,1766973044157,-2480968.67590697,0.00017,2]
[399980995,1766973044559,-421.7995,0.00014899,2]
[399980996,1766973044568,-496.68678771,0.00015835,2]
[399981002,1766973045743,-1009.0,0.000151,2]
[399981003,1766973045753,-4313.31321229,0.00015835,2]
[399981004,1766973045763,-554.77,0.00016192,2]
[399981005,1766973045773,-1221.52,0.00016192,2]
[399981006,1766973045784,-170.94,0.00016192,2]
[399981007,1766973045794,-178.66,0.00016192,2]
[399981008,1766973045803,-376378.48394563,0.00017,2]
[399981009,1766973045816,-1886.16386893,0.00017,2]
[399981010,1766973045827,-45391.10593899,0.00017,2]
[399981012,1766973046437,-732.24733634,0.00017,2]
[399981013,1766973046449,-83355.86221884,0.00017,2]
[399981014,1766973046461,-302.0,0.00017,2]
[399981015,1766973048271,-2262.22517435,0.00017,2]
[399981016,1766973048433,-3218.51208357,0.00017,2]
[399981017,1766973048445,-357.449822,0.00017,2]
[399981018,1766973048458,-1125.22801669,0.00017,2]
[399981019,1766973048469,-453.0,0.00017,2]
[399981020,1766973048480,-11529.64647535,0.00017,2]
[399981021,1766973048681,-2503.97516219,0.00017,2]
[399981022,1766973048693,-3692.54708041,0.00017,2]
[399981023,1766973048704,-291.04877055,0.00017,2]
[399981024,1766973049353,-2433.92932378,0.00017,2]
[399981025,1766973049365,-364.16506748,0.00017,2]
[399981026,1766973049378,-413.34376631,0.00017,2]
[399981027,1766973050145,-1550.84219393,0.00017,2]
[399981028,1766973050157,-622.06305235,0.00017,2]
[399981029,1766973093938,1111.23385629,0.00014447,5]
[399981030,1766973215854,500.0,0.00030136,120]
[399981031,1766973216098,500.0,0.00030136,120]
[399981032,1766973216340,500.0,0.00030136,120]
[399981033,1766973216587,500.0,0.00030136,120]
[399981034,1766973216857,500.0,0.00030136,120]
[399981035,1766973217093,500.0,0.00030136,120]
[399981036,1766973217341,500.0,0.00030136,120]
[399981037,1766973217557,500.0,0.00030136,120]
[399981038,1766973217806,500.0,0.00030136,120]
[399981039,1766973218051,268.13713268,0.00030136,120]
[399981040,1766973219769,153.49775233,0.00030136,120]
[399981041,1766973484148,160.34,0.000301,120]
[399981042,1766973507044,157.0,0.000301,120]
[399981044,1766973608357,-166.66,0.00013001,2]
[399981045,1766973608378,-6.14453348,0.00013001,2]
[399981046,1766973611229,-212.24669441,0.00013001,2]
[399981048,1766973787894,-38.60877211,0.00013001,2]
[399981049,1766973787921,-166.66,0.00013274,2]
[399981050,1766973787944,-45.37548372,0.00013383,2]
[399981051,1766973789897,-240.70904976,0.00013383,2]
[399981052,1766973792067,-169.35454846,0.00013383,2]
[399981053,1766973792384,172.44,0.00010764,2]
[399981054,1766973848466,-44.56091806,0.00013383,2]
[399981055,1766973848490,-108.46049726,0.00013419,2]
[399981056,1766973853357,-397.25099534,0.00013378,2]
[399981057,1766973854846,-42.35900466,0.00013378,2]
[399981058,1766973854869,-162.90670647,0.00013401,2]
[399981059,1766973856382,-137.09329353,0.00013401,2]
[399981060,1766973856407,-103.84478715,0.00013419,2]
[399981061,1766973982987,-40.728035,0.00013419,2]
[399981062,1766973983012,-172.44,0.00013455,2]
[399981063,1766973983041,-11.8075181,0.00013503,2]
[399981064,1766973985176,-156.02175619,0.00013503,2]
[399981065,1766973995469,216.692041,0.00030136,120]
[399981066,1766974031636,158.79078861,0.00030136,120]
[399981071,1766974164888,475.9555732,0.00030136,120]
[399981072,1766974206629,153.39,0.00030136,120]
[399981074,1766974231940,-1500.0,0.00013396,2]
[399981075,1766974231950,-260.0,0.00013396,2]
[399981076,1766974231960,-1000.0,0.00013412,2]
[399981077,1766974231969,-180.91019309,0.00013426,2]
[399981078,1766974231995,-254.45,0.00013426,2]
[399981079,1766974232006,-142.84904999,0.00013426,2]
[399981080,1766974232015,-190.21034731,0.00013448,2]
[399981081,1766974232025,-166.66,0.00013548,2]
[399981082,1766974232034,-426.09,0.00013712,2]
[399981083,1766974232044,-406.87412645,0.00013767,2]
[399981084,1766974232053,-200.0,0.00013818,2]
[399981085,1766974232062,-166.66,0.00013822,2]
[399981086,1766974232071,-150.0,0.00013993,2]
[399981087,1766974232080,-300.0,0.00013993,2]
[399981088,1766974232090,-1200.0,0.00013993,2]
[399981089,1766974232102,-300.0,0.00013993,2]
[399981090,1766974232111,-1200.0,0.00013994,2]
[399981091,1766974232120,-904.08867148,0.00013994,2]
[399981092,1766974232130,-413.90444735,0.00013994,2]
[399981093,1766974232143,-17891.90006637,0.00013994,2]
[399981094,1766974232152,-623.91912848,0.00013994,2]
[399981097,1766974232162,-245.02299576,0.00013994,2]
[399981100,1766974232173,-500.0,0.00013994,2]
[399981101,1766974232182,-500.0,0.00013994,2]
[399981103,1766974232192,-500.0,0.00013994,2]
[399981105,1766974232201,-170.92193362,0.00013994,2]
[399981107,1766974232211,-500.0,0.00013994,2]
[399981108,1766974232221,-377.16227004,0.00013994,2]
[399981109,1766974232233,-500.0,0.00013994,2]
[399981110,1766974232244,-379.07244655,0.00013994,2]
[399981111,1766974232254,-500.0,0.00013994,2]